[Event "Azerbaijan-ch 1st League 2025"]
[Site "Baku"]
[Date "2025.01.06"]
[Round "1.12"]
[White "Davudov, Tunar"]
[Black "Ibrahimli, Suat"]
[Result "1-0"]
[Annotator "TA"]
[ECO "E11"]
[WhiteElo "2225"]
[BlackElo "1949"]
[PlyCount "97"]
[EventDate "2025.01.05"]
[EventType "swiss"]
[EventCountry "AZE"]
[SourceTitle "playchess.com"]
[Source "ChessBase"]
[SourceQuality "1"]
[TimeControl "40/5400+30:1800+30"]

{[%evp 15,97,30,43,32,26,27,25,29,30,24,22,23,29,34,36,8,23,0,14,3,17,16,35,31,40,0,33,31,46,29,72,82,67,0,123,41,71,27,41,43,52,37,51,25,23,27,16,30,23,18,45,45,38,0,0,0,84,79,79,63,99,79,152,88,189,182,222,214,391,385,373,375,534,524,512,498,1567,1519,1406,1271,3057,3024,2764,1350]} 1. d4 {[%emt 0:01:23]} Nf6 {[%emt 0:00:12]} 2. c4 {[%emt 0:00:15]} e6 {[%emt 0:00:04]} 3. Nf3 {[%emt 0:00:05]} Bb4+ {[%emt 0:00:04]} 4. Bd2 {[%emt 0:00:21]} c5 {[%emt 0:00:05]} 5. Bxb4 {[%emt 0:02:56]} cxb4 {[%emt 0:00:04]} 6. g3 {[%emt 0:00:15]} d5 {[%emt 0:00:54]} 7. Bg2 {[%emt 0:00:35]} O-O {[%emt 0:00:32]} 8. Nbd2 {[%emt 0:01:43]} Nc6 {[%emt 0:09:57]} 9. O-O {[%emt 0:01:33]} b6 {[%emt 0:14:14]} 10. Rc1 {[%emt 0:04:21]} Bb7 {[%emt 0:00:36]} 11. cxd5 {[%emt 0:03:45] White has an edge.} exd5 {[%emt 0:00:46]} 12. e3 {[%emt 0:03:44]} Re8 {[%emt 0:01:33]} 13. Qa4 {[%emt 0:05:49]} Qd7 {[%emt 0:01:02][%cal Oc6d4]} 14. Qb5 {[%emt 0:08:58]} Rac8 {[%emt 0:02:00]} 15. Qd3 {[%emt 0:01:33]} Ne4 {[%emt 0:01:36]} 16. Qb1 {[%emt 0:20:05]} f5 {[%emt 0:01:48]} 17. Bh3 {[%emt 0:16:18]} g6 {[%emt 0:04:56]} (17... Ba6 {feels hotter.} 18. Rfd1 Be2 19. Re1 Ba6) 18. Rfd1 {[%emt 0:01:53]} Nd6 {[%emt 0:01:52]} 19. Rc2 {[%emt 0:02:07]} h6 {[%emt 0:06:28]} 20. Nb3 {[%emt 0:03:28]} a5 {[%emt 0:02:33]} 21. Nc1 {[%emt 0:00:42]} g5 {[%emt 0:00:26]} 22. Nd3 {[%emt 0:03:22]} Nc4 {[%emt 0:05:08] White must now prevent ...g4.} 23. Bg2 {[%emt 0:02:27]} Qe6 {[%emt 0:45:10] [#]} 24. Nde5 {[%emt 0:01:32]} Ne7 {[%emt 0:00:00]} (24... N6xe5 $11 {keeps the balance.} 25. dxe5 Rf8) 25. h3 {[%emt 0:05:18]} (25. Nxg5 $1 $16 hxg5 26. Nxc4) 25... Kg7 {[%emt 0:00:00]} 26. Qc1 {[%emt 0:02:16][%cal Of3g5]} Nd6 {[%emt 0:00:00]} 27. h4 {[%emt 0:01:06]} g4 {[%emt 0:00:00]} 28. Ne1 {[%emt 0:00:16]} Ba6 {[%emt 0:00:00]} 29. Bf1 {[%emt 0:00:44]} Rxc2 {[%emt 0:00:00]} 30. Qxc2 {[%emt 0:00:08]} Rc8 {[%emt 0:00:00]} 31. Qb1 {[%emt 0:00:26]} Bxf1 {[%emt 0:00:00]} 32. Kxf1 {[%emt 0:00:06]} Ne4 {[%emt 0:04:30]} 33. N1d3 {[%emt 0:00:52]} Rc7 {[%emt 0:00:00]} 34. Ke2 {[%emt 0:01:11]} Qc8 $1 {[%emt 0:00:00]} 35. Rc1 {[%emt 0:00:34]} Nd6 {[%emt 0:00:00]} (35... Nc6 $11) 36. Rxc7 $16 {[%emt 0:01:11]} Qxc7 {[%emt 0:00:00]} 37. Qd1 {[%emt 0:00:25]} Qc8 {[%emt 0:00:00]} 38. Kf1 {[%emt 0:00:26]} (38. Qa4 {simplifies} Ng6 39. Qd7+ Qxd7 40. Nxd7 b5 41. Nb8) 38... Kf6 {[%emt 0:00:00]} ({Better is} 38... b5) 39. Kg2 {[%emt 0:00:16] White is more active.} (39. Qa4 $142) 39... Nc4 {[%emt 0:00:00]} (39... b5 $16 {might work better.}) 40. Qa4 $18 {[%emt 0:00:00]} Nxe5 {[%emt 0:00:00]} 41. Nxe5 {[%emt 0:02:14][%mdl 4096] Endgame. KQN-KQN} (41. dxe5+ Ke6 $11) 41... Ke6 $2 {[%emt 0:00:00] [#]} (41... Ng8 {keeps fighting.} 42. Qb5 Qe6) 42. Qb5 {[%emt 0:01:42]} Qd8 {[%emt 0:00:00]} 43. h5 {[%emt 0:00:31]} Nc8 {[%emt 0:00:00]} (43... Kf6 $142 44. Nd7+ Kf7 45. Nxb6 b3 46. Qxb3 (46. Qxa5 bxa2 47. b4 a1=Q $17) (46. axb3 Qb8 $18) 46... Qd6) 44. Qc6+ {[%emt 0:00:12] White is clearly winning.} Nd6 {[%emt 0:00:00]} 45. Ng6 {[%emt 0:00:55]} Qc8 {[%emt 0:00:00]} (45... Kf7 $142 46. Nf4 (46. Qxd5+ Kf6 $18) 46... Ke7) 46. Nf4+ {[%emt 0:00:17]} Ke7 {[%emt 0:00:00]} 47. Nxd5+ {[%emt 0:01:08]} Ke6 {[%emt 0:00:00]} 48. Nf4+ {[%emt 0:00:03]} ({Worse is} 48. Qxb6 Kxd5 49. Qxa5+ Kc4 $11) 48... Ke7 {[%emt 0:00:00]} 49. Ng6+ {[%emt 0:00:03] Weighted Error Value: White=0.13 (very precise) /Black=0.39.  Mistake:       	White=3     	Black=7      Inaccurate:     	White=5     	Black=5      OK:         	White=10    	Black=8      Best:        	White=5     	Black=2      Strong:       	---       	Black=1} 1-0

[Event "Azerbaijan-ch 1st League 2025"]
[Site "Baku"]
[Date "2025.01.06"]
[Round "1.13"]
[White "Baghirov, Mahammad"]
[Black "Ahmadov, Fariz"]
[Result "0-1"]
[Annotator "TA"]
[ECO "C66"]
[WhiteElo "1932"]
[BlackElo "2224"]
[PlyCount "108"]
[EventDate "2025.01.05"]
[EventType "swiss"]
[EventCountry "AZE"]
[SourceTitle "playchess.com"]
[Source "ChessBase"]
[SourceQuality "1"]
[TimeControl "40/5400+30:1800+30"]

{[%evp 9,108,29,44,23,36,31,42,16,19,-10,-3,-24,-22,-21,-15,-31,-11,-25,-11,-13,-7,-6,0,-5,-4,-18,-9,-9,-8,-14,0,0,0,-28,-22,-20,-22,-18,-18,-17,-17,-121,-143,-145,-140,-142,-128,-220,-204,-191,-150,-141,-138,-156,-127,-126,-106,-104,-95,-101,-114,-326,-342,-397,-386,-345,0,-102,0,-102,-95,-96,-92,-152,-162,-257,-292,-407,-400,-619,-516,-595,-530,-643,-645,-645,-645,-645,-641,-635,-620,-618,-602,-581,-595,-2003,-1493,-5481,-5433,-5306,-5297]} 1. e4 {[%emt 0:00:03]} e5 {[%emt 0:01:20]} 2. Nf3 {[%emt 0:00:07]} Nc6 {[%emt 0:00:05]} 3. Bb5 {[%emt 0:00:20]} Nf6 {[%emt 0:00:39]} 4. O-O {[%emt 0:00:13]} d6 {[%emt 0:00:05]} 5. d4 {[%emt 0:00:12]} Bd7 {[%emt 0:01:52]} 6. dxe5 {[%emt 0:00:18]} Nxe5 {[%emt 0:00:57]} 7. Bxd7+ {[%emt 0:00:09]} Qxd7 {[%emt 0:00:32]} 8. Nxe5 {[%emt 0:00:09]} dxe5 {[%emt 0:00:08]} 9. Qxd7+ {[%emt 0:00:04]} Nxd7 {[%emt 0:00:16]} 10. Be3 {[%emt 0:03:09]} Bc5 {[%emt 0:00:35]} 11. Bxc5 {[%emt 0:01:16]} Nxc5 {[%emt 0:00:19]} 12. Nc3 {[%emt 0:00:05]} c6 {[%emt 0:04:08]} 13. f3 {[%emt 0:01:05]} Ne6 {[%emt 0:01:04]} 14. Ne2 {[%emt 0:00:24]} Ke7 {[%emt 0:00:42]} 15. Rad1 {[%emt 0:00:22]} Rad8 {[%emt 0:00:55]} 16. Kf2 {[%emt 0:00:09]} g6 {[%emt 0:01:52]} 17. c3 {[%emt 0:02:22]} h5 {[%emt 0:01:58]} 18. h4 {[%emt 0:00:46]} Rhg8 {[%emt 0:01:20]} 19. g3 {[%emt 0:01:02]} Rgf8 {[%emt 0:02:53]} 20. Ke3 {[%emt 0:04:17]} f5 {[%emt 0:01:06]} 21. Rxd8 {[%emt 0:00:06]} Rxd8 $11 {[%emt 0:00:13][%mdl 4096] Endgame KRN-KRN} 22. f4 {[%emt 0:00:44]} Nc5 {[%emt 0:17:51]} 23. exf5 {[%emt 0:03:35]} Rd3+ {[%emt 0:00:10]} 24. Kf2 {[%emt 0:00:07]} Ne4+ {[%emt 0:00:20]} 25. Ke1 {[%emt 0:00:12]} (25. Kg1 $1 $11) 25... gxf5 $17 {[%emt 0:00:44]} 26. fxe5 {[%emt 0:05:09]} Re3 {[%emt 0:01:00]} 27. Rg1 {[%emt 0:08:20]} (27. Rxf5 $2 Rxe2+ (27... Nxg3 $2 28. Rf2 $19) 28. Kd1 Rxb2 (28... Nxg3 $2 29. Rg5 $19) 29. Rxh5 Ke6 $19 (29... Rxa2 $2 30. Rh7+ Ke6 31. Rxb7 $19) (29... Nxc3+ $2 30. Ke1 $19)) 27... Ke6 {[%emt 0:00:44] Black has more active pieces.} 28. Rg2 {[%emt 0:00:50]} (28. Kd1 $17 {was called for.}) 28... Kxe5 $19 {[%emt 0:01:46]} 29. Kd1 {[%emt 0:05:06]} c5 {[%emt 0:04:20]} 30. c4 {[%emt 0:05:34]} Rd3+ {[%emt 0:00:57]} 31. Kc1 {[%emt 0:00:10]} a6 {[%emt 0:03:37]} 32. a4 {[%emt 0:01:10]} a5 {[%emt 0:04:13]} 33. Rg1 {[%emt 0:05:09]} Re3 {[%emt 0:02:02]} 34. Kd1 {[%emt 0:00:56]} Rf3 {[%emt 0:08:13]} 35. Rg2 $2 {[%emt 0:02:10]} (35. Kc2 $17) 35... Rd3+ {[%emt 0:05:52]} 36. Kc1 {[%emt 0:02:05]} Rd2 {[%emt 0:00:36]} 37. Rf2 {[%emt 0:00:09]} Rd3 $2 {[%emt 0:06:09]} (37... Rd4 $1 $19 {[%cal Rd4c4]} 38. Nxd4 Nxf2) 38. Rg2 $17 {[%emt 0:00:08]} Rf3 {[%emt 0:01:40]} (38... b6 $17 {and ...Rd2 would now be decisive} 39. Rg1 Re3) 39. Kc2 {[%emt 0:00:40]} (39. Kd1 $1 $11 {keeps the balance.}) 39... Kd6 {[%emt 0:02:12]} 40. Kc1 {[%emt 0:00:00]} Kc6 {[%emt 0:00:00]} 41. Rg1 {[%emt 0:09:40] [#]} (41. Kc2 $142) 41... Rf2 $1 {[%emt 0:07:14]} 42. Nf4 {[%emt 0:04:08] [#]} (42. Re1 $142) 42... Nxg3 $1 $19 {[%emt 0:02:12][%mdl 512]} 43. Nd3 {[%emt 0:10:19][%cal Og1g3]} (43. Rxg3 Rxf4) 43... Ne2+ {[%emt 0:00:24]} 44. Kd2 {[%emt 0:01:09]} (44. Kd1 $142 Nxg1 45. Nxf2) 44... Nxg1+ {[%emt 0:00:54]} 45. Nxf2 {[%emt 0:00:06] KN-KN. Black is a pawn up.} Nf3+ {[%emt 0:00:17]} 46. Ke3 {[%emt 0:00:01]} Nxh4 {[%emt 0:01:02]} 47. Kf4 {[%emt 0:00:08]} Ng2+ {[%emt 0:00:16]} 48. Kf3 {[%emt 0:01:28]} Ne1+ {[%emt 0:01:00]} 49. Kf4 {[%emt 0:00:07]} Nc2 {[%emt 0:00:51]} 50. Nd3 {[%emt 0:04:42]} h4 {[%emt 0:01:17]} 51. Ne5+ {[%emt 0:00:36]} Kd6 {[%emt 0:02:12]} 52. Kxf5 {[%emt 0:01:35]} h3 {[%emt 0:00:20] ( -> ...h2)} 53. Ng4 {[%emt 0:00:03] [#]} Ne3+ $1 {[%emt 0:00:45][%mdl 512]} 54. Nxe3 {[%emt 0:00:07]} h2 {[%emt 0:00:03]} 0-1

[Event "Azerbaijan-ch 1st League 2025"]
[Site "Baku"]
[Date "2025.01.06"]
[Round "1.14"]
[White "Hajialiyev, Islam"]
[Black "Isbatov, Kanan"]
[Result "1/2-1/2"]
[Annotator "TA"]
[ECO "D79"]
[WhiteElo "2217"]
[BlackElo "1882"]
[PlyCount "267"]
[EventDate "2025.01.05"]
[EventType "swiss"]
[EventCountry "AZE"]
[SourceTitle "playchess.com"]
[Source "ChessBase"]
[SourceQuality "1"]
[TimeControl "40/5400+30:1800+30"]

{[%evp 127,266,0,0,0,0,0,0,0,0,0,0,0,0,0,0,0,0,0,0,0,0,0,0,0,0,0,0,0,0,0,0,0,0,0,0,0,0,0,0,0,0,0,0,0,0,0,0,0,0,0,0,0,0,0,0,0,0,0,0,0,0,0,0,0,0,0,0,0,0,0,0,0,0,0,0,0,0,0,0,0,0,0,0,0,0,0,0,0,0,0,0,0,0,0,0,0,0,0,0,0,0,0,0,0,0,0,0,0,0,0,0,0,0,0,0,0,0,0,0,0,0,0,0,0,0,0,0,0,0,0,0,0,0,0,0,0,0,0,0,0,0]} 1. Nf3 {[%emt 0:00:06]} Nf6 {[%emt 0:00:17]} 2. g3 {[%emt 0:00:19]} d5 {[%emt 0:00:46]} 3. Bg2 {[%emt 0:00:31]} g6 {[%emt 0:00:17]} 4. d4 {[%emt 0:00:15]} Bg7 {[%emt 0:00:03]} 5. O-O {[%emt 0:00:17]} O-O {[%emt 0:00:06]} 6. c4 {[%emt 0:00:07]} c6 {[%emt 0:00:13]} 7. cxd5 {[%emt 0:00:02]} cxd5 {[%emt 0:00:09]} 8. Nc3 {[%emt 0:00:06]} Ne4 {[%emt 0:00:55]} 9. Ne5 {[%emt 0:00:20]} Nxc3 {[%emt 0:00:24]} 10. bxc3 {[%emt 0:00:02]} Nc6 {[%emt 0:00:10]} 11. Nxc6 {[%emt 0:05:11]} bxc6 {[%emt 0:00:01]} 12. Qa4 {[%emt 0:03:24]} Bd7 {[%emt 0:01:15]} 13. Qa3 {[%emt 0:02:33]} e5 {[%emt 0:08:52]} 14. dxe5 {[%emt 0:07:19]} Bxe5 {[%emt 0:00:06]} 15. Be3 {[%emt 0:01:35]} Re8 {[%emt 0:18:07]} 16. Rfe1 {[%emt 0:13:01]} Qf6 {[%emt 0:00:58]} 17. Rac1 {[%emt 0:00:32]} h5 {[%emt 0:02:07]} 18. Qb2 {[%emt 0:04:06]} h4 {[%emt 0:19:54]} 19. Qd2 {[%emt 0:00:38]} hxg3 {[%emt 0:04:05]} 20. hxg3 {[%emt 0:02:08]} Bf5 {[%emt 0:09:19]} 21. Bf3 {[%emt 0:18:09]} Kg7 {[%emt 0:16:29]} 22. Bh6+ {[%emt 0:00:49]} Kg8 {[%emt 0:00:02]} 23. Kg2 {[%emt 0:00:49]} Rab8 {[%emt 0:03:54]} 24. Be3 {[%emt 0:04:03]} Kg7 {[%emt 0:02:35]} 25. Bxa7 {[%emt 0:05:59]} Rh8 {[%emt 0:00:16]} 26. Rh1 {[%emt 0:01:02]} Ra8 {[%emt 0:02:43]} 27. Bd4 {[%emt 0:00:20]} Bxd4 {[%emt 0:01:33]} 28. cxd4 {[%emt 0:00:58]} Qe6 {[%emt 0:00:22]} 29. Rxh8 {[%emt 0:00:25]} Rxh8 {[%emt 0:00:01]} 30. Rh1 {[%emt 0:00:39]} Bh3+ {[%emt 0:02:17]} 31. Kg1 {[%emt 0:02:22]} Qf5 {[%emt 0:00:46]} 32. Qd3 {[%emt 0:13:34]} Rb8 {[%emt 0:03:07]} 33. Qxf5 {[%emt 0:00:09]} Bxf5 {[%emt 0:00:03]} 34. Kg2 {[%emt 0:00:43]} Ra8 {[%emt 0:01:04]} 35. Rc1 {[%emt 0:01:07]} Bd7 {[%emt 0:00:01]} 36. Rc2 {[%emt 0:00:28]} f5 {[%emt 0:00:44]} 37. e3 {[%emt 0:00:21]} Kf6 {[%emt 0:00:21]} 38. Bd1 {[%emt 0:00:19]} Ra3 {[%emt 0:00:19]} 39. Rb2 {[%emt 0:01:20]} Ke6 {[%emt 0:00:09]} 40. Bb3 {[%emt 0:00:00]} Kd6 {[%emt 0:00:00]} 41. Kf3 {[%emt 0:00:50]} g5 {[%emt 0:04:16]} 42. Ke2 {[%emt 0:04:13]} Bc8 {[%emt 0:01:50]} 43. Kd3 {[%emt 0:00:15]} Ba6+ {[%emt 0:00:04]} 44. Kc3 {[%emt 0:00:08]} c5 {[%emt 0:00:06]} 45. dxc5+ {[%emt 0:03:05]} Kxc5 {[%emt 0:00:02]} 46. Rd2 {[%emt 0:00:27]} Bc4 {[%emt 0:00:10]} 47. Kb2 {[%emt 0:00:04]} Ra8 {[%emt 0:00:22]} 48. Bxc4 {[%emt 0:01:30]} dxc4 {[%emt 0:00:09]} 49. Rd7 {[%emt 0:00:30]} f4 {[%emt 0:01:06]} 50. Rg7 {[%emt 0:03:20]} fxe3 {[%emt 0:04:33]} 51. fxe3 {[%emt 0:00:35]} Re8 {[%emt 0:02:34]} 52. Rxg5+ {[%emt 0:00:48]} Kd6 {[%emt 0:00:02]} 53. Kc3 {[%emt 0:07:36]} Rxe3+ {[%emt 0:00:04]} 54. Kxc4 {[%emt 0:00:35]} Ra3 {[%emt 0:00:02]} 55. Rd5+ {[%emt 0:01:53]} Kc6 {[%emt 0:00:11]} 56. Rd3 {[%emt 0:09:33]} Rxa2 {[%emt 0:00:04]} 57. Rd8 {[%emt 0:06:29]} Ra3 {[%emt 0:02:51]} 58. Rg8 {[%emt 0:01:24]} Kd6 {[%emt 0:00:07]} 59. Kd4 {[%emt 0:00:29]} Ke6 {[%emt 0:00:34]} 60. Ke4 {[%emt 0:00:57]} Kf7 {[%emt 0:00:25]} 61. Rg5 {[%emt 0:00:08]} Kf6 {[%emt 0:00:41]} 62. Rf5+ {[%emt 0:00:06]} Kg6 {[%emt 0:00:18]} 63. g4 {[%emt 0:00:00]} Ra1 {[%emt 0:00:18]} 64. Rb5 {[%emt 0:00:18]} Rf1 {[%emt 0:00:09]} 65. Ke3 {[%emt 0:00:17]} Rf6 {[%emt 0:00:20]} 66. Rb8 {[%emt 0:00:42]} Rf1 {[%emt 0:00:46]} 67. Ke4 {[%emt 0:00:13]} Rf2 {[%emt 0:00:35]} 68. Ke5 {[%emt 0:00:20]} Kg7 {[%emt 0:00:33]} 69. Ra8 {[%emt 0:00:44]} Rf1 {[%emt 0:00:15]} 70. Ra7+ {[%emt 0:00:12]} Kg6 {[%emt 0:00:19]} 71. Ra8 {[%emt 0:00:07]} Kg7 {[%emt 0:00:09]} 72. Ra6 {[%emt 0:00:08]} Rf2 {[%emt 0:00:19]} 73. Rb6 {[%emt 0:00:21]} Rf1 {[%emt 0:27:56]} 74. Rb2 {[%emt 0:00:11]} Kg6 {[%emt 0:00:00]} 75. Rb8 {[%emt 0:00:26]} Kg7 {[%emt 0:00:00]} 76. Ke4 {[%emt 0:00:08]} Rf2 {[%emt 0:00:00]} 77. Rb6 {[%emt 0:00:30]} Rf1 {[%emt 0:00:00]} 78. Rb7+ {[%emt 0:00:14]} Kg6 {[%emt 0:00:00]} 79. Rb8 {[%emt 0:00:05]} Kg7 {[%emt 0:00:00]} 80. Rb5 {[%emt 0:00:25]} Kg6 {[%emt 0:00:00]} 81. Rb8 {[%emt 0:00:09]} Kg7 {[%emt 0:00:00]} 82. Ke5 {[%emt 0:00:51]} Rf2 {[%emt 0:00:00]} 83. Rb7+ {[%emt 0:00:12]} Kg6 {[%emt 0:00:00]} 84. Rb8 {[%emt 0:00:01]} Kg7 {[%emt 0:00:00]} 85. Ke4 {[%emt 0:00:01]} Rf1 {[%emt 0:00:00]} 86. Rb5 {[%emt 0:00:00]} Kg6 {[%emt 0:00:00]} 87. Ke3 {[%emt 0:00:00]} Rf6 {[%emt 0:00:00]} 88. Rb8 {[%emt 0:00:00]} Kg7 {[%emt 0:00:00]} 89. Rb2 {[%emt 0:00:28]} Kg6 {[%emt 0:00:00]} 90. Rb5 {[%emt 0:00:21]} Rf7 {[%emt 0:00:00]} 91. Ra5 {[%emt 0:01:38]} Rf6 {[%emt 0:00:00]} 92. Ra8 {[%emt 0:00:33]} Kg7 {[%emt 0:00:00]} 93. Ra4 {[%emt 0:00:10]} Kg6 {[%emt 0:00:00]} 94. Ra8 {[%emt 0:00:16]} Kg5 {[%emt 0:00:00]} 95. Rg8+ {[%emt 0:00:57]} Rg6 {[%emt 0:00:00]} 96. Rxg6+ {[%emt 0:00:12]} Kxg6 {[%emt 0:00:00]} 97. Ke2 {[%emt 0:00:01]} Kf6 {[%emt 0:00:00]} 98. Kf2 {[%emt 0:00:01]} Kg5 {[%emt 0:00:00]} 99. Kg3 {[%emt 0:00:01]} Kg6 {[%emt 0:00:00]} 100. Kh4 {[%emt 0:00:12]} (100. Kf4 $5) 100... Kh6 {[%emt 0:00:00]} 101. g5+ {[%emt 0:00:04]} Kg6 {[%emt 0:00:00]} 102. Kg4 {[%emt 0:00:07]} Kg7 {[%emt 0:00:00]} 103. Kg3 {[%emt 0:00:03]} Kf7 {[%emt 0:00:00]} 104. Kh3 {[%emt 0:00:06]} Kg7 {[%emt 0:00:00]} 105. Kh4 {[%emt 0:00:07]} Kg6 {[%emt 0:00:00]} 106. Kg4 {[%emt 0:00:04]} Kg7 {[%emt 0:00:00]} 107. Kh5 {[%emt 0:00:03]} Kh7 {[%emt 0:00:00]} 108. Kh4 {[%emt 0:00:04]} Kg7 {[%emt 0:00:00]} 109. Kg3 $1 {[%emt 0:00:04]} Kg6 {[%emt 0:00:00]} 110. Kf4 {[%emt 0:00:00]} Kg7 {[%emt 0:00:00]} 111. Kf3 {[%emt 0:00:08]} Kf7 {[%emt 0:00:00]} 112. Kg3 {[%emt 0:00:04]} Kg7 {[%emt 0:00:00]} 113. Kf4 {[%emt 0:00:04]} Kg6 {[%emt 0:00:00]} 114. Kg4 {[%emt 0:00:01]} Kg7 {[%emt 0:00:00]} 115. Kh3 {[%emt 0:00:08]} Kg6 {[%emt 0:00:00]} 116. Kh4 {[%emt 0:00:05]} Kg7 {[%emt 0:00:00]} 117. Kh5 {[%emt 0:00:06]} Kh7 {[%emt 0:00:00]} 118. g6+ {[%emt 0:00:03]} Kg7 {[%emt 0:00:00]} 119. Kg5 {[%emt 0:00:05]} Kg8 {[%emt 0:00:00]} 120. Kg4 {[%emt 0:00:04]} Kg7 {[%emt 0:00:00]} 121. Kf5 $1 {[%emt 0:00:04]} Kg8 {[%emt 0:00:00]} 122. Kf6 {[%emt 0:00:08]} (122. Ke6 $5) 122... Kf8 {[%emt 0:00:00]} 123. Kg5 {[%emt 0:00:09]} Kg7 {[%emt 0:00:00]} 124. Kh5 {[%emt 0:00:06]} Kg8 {[%emt 0:00:00]} 125. Kh4 {[%emt 0:00:14]} Kg7 {[%emt 0:00:00]} 126. Kg5 {[%emt 0:00:08]} (126. Kh5 $5) 126... Kg8 {[%emt 0:00:00]} 127. Kf6 {[%emt 0:00:04]} Kf8 {[%emt 0:00:00]} 128. Ke5 {[%emt 0:00:20]} Kg7 {[%emt 0:00:00]} 129. Kf5 {[%emt 0:00:10]} Kg8 {[%emt 0:00:00]} 130. Kf4 {[%emt 0:00:14]} (130. Kg5 $5) 130... Kg7 {[%emt 0:00:00]} 131. Kg5 {[%emt 0:00:08]} Kg8 {[%emt 0:00:00]} 132. Kf6 {[%emt 0:00:22]} Kf8 {[%emt 0:00:00]} 133. g7+ {[%emt 0:00:00]} Kg8 {[%emt 0:00:00]} 134. Kg6 {[%emt 0:00:01]} 1/2-1/2

[Event "Azerbaijan-ch 1st League 2025"]
[Site "Baku"]
[Date "2025.01.06"]
[Round "1.15"]
[White "Azimov, Yasin"]
[Black "Hamidov, Allahverdi"]
[Result "0-1"]
[Annotator "TA"]
[ECO "E05"]
[WhiteElo "1880"]
[BlackElo "2200"]
[PlyCount "84"]
[EventDate "2025.01.05"]
[EventType "swiss"]
[EventCountry "AZE"]
[SourceTitle "playchess.com"]
[Source "ChessBase"]
[SourceQuality "1"]
[TimeControl "40/5400+30:1800+30"]

{[%evp 18,84,20,8,14,-1,0,-3,-9,-47,-25,-42,-43,-81,-70,-73,-46,-55,-40,-43,-25,-39,-31,-37,-41,-29,-27,-27,-28,-54,-47,-47,-55,-39,-46,-41,-44,-103,-108,-97,-95,-86,-47,-71,-51,-47,0,-19,0,0,0,-25,0,-29,-41,-56,-46,-759,-23,-799,-796,-779,-774,-775,-733,-725,-564,-497,-509]} 1. d4 {[%emt 0:00:04]} d5 {[%emt 0:00:11]} 2. c4 {[%emt 0:00:11]} e6 {[%emt 0:00:19]} 3. g3 {[%emt 0:00:21]} Nf6 {[%emt 0:00:07]} 4. Bg2 {[%emt 0:00:11]} Be7 {[%emt 0:00:10]} 5. Nf3 {[%emt 0:00:11]} O-O {[%emt 0:00:04]} 6. O-O {[%emt 0:00:10]} dxc4 {[%emt 0:00:08]} 7. Qc2 {[%emt 0:00:13]} a6 {[%emt 0:00:11]} 8. a4 {[%emt 0:00:19]} Bd7 {[%emt 0:00:08][%cal Bc8d7,Bd7c6,Bc6e4][%mdl 32]} 9. Qxc4 {[%emt 0:00:16]} Bc6 {[%emt 0:00:03]} 10. Bg5 {[%emt 0:00:31]} Nbd7 {[%emt 0:00:19]} 11. Qc2 {[%emt 0:02:25]} Be4 {[%emt 0:04:06]} 12. Qc1 {[%emt 0:03:44]} c5 {[%emt 0:06:17]} 13. Nbd2 {[%emt 0:05:55]} Bd5 {[%emt 0:07:30]} 14. e3 {[%emt 0:14:38]} Rc8 {[%emt 0:04:59] Hoping for ...cxd4.} 15. Qd1 {[%emt 0:04:32]} h6 {[%emt 0:04:28] Black is more active.} 16. Bxf6 {[%emt 0:01:56]} Nxf6 {[%emt 0:02:38]} 17. Rc1 {[%emt 0:10:36]} Qb6 {[%emt 0:03:52]} 18. b3 {[%emt 0:15:27]} cxd4 {[%emt 0:11:10]} 19. Nxd4 {[%emt 0:01:50]} Bc5 {[%emt 0:04:42]} 20. Bxd5 {[%emt 0:03:51]} Nxd5 {[%emt 0:01:15]} 21. N2f3 {[%emt 0:04:41]} Ba3 {[%emt 0:04:30]} 22. Rxc8 {[%emt 0:05:43]} Rxc8 {[%emt 0:00:07]} 23. Ne5 {[%emt 0:00:36]} Qc7 {[%emt 0:02:38]} 24. Nc4 {[%emt 0:00:31]} Be7 {[%emt 0:00:23]} 25. Qg4 {[%emt 0:00:58][%cal Od4e6]} Bf6 {[%emt 0:09:04]} 26. Rd1 {[%emt 0:07:07][%cal Od4e6] Nxe6! would now be deadly.} Rd8 {[%emt 0:03:19]} 27. h4 {[%emt 0:04:29]} (27. Rd2 $15) 27... Nc3 $17 {[%emt 0:08:34]} 28. Rd3 {[%emt 0:00:55] [#]} Bxd4 $1 {[%emt 0:06:10]} ({Of course not} 28... Nxa4 $6 29. Nxe6 fxe6 30. Qxe6+ Kh7 31. Qe4+ Kh8 32. bxa4 $14) 29. exd4 {[%emt 0:00:21]} Nd5 {[%emt 0:03:16]} 30. Rf3 {[%emt 0:00:43]} f5 {[%emt 0:00:35]} 31. Qg6 {[%emt 0:01:05]} Nf6 {[%emt 0:00:35]} (31... Qf7 $15 32. h5 Nf6 33. Qxf7+ Kxf7 34. Ne5+ Ke7 35. Ng6+ Kd6) 32. Re3 {[%emt 0:01:03]} Qd7 {[%emt 0:04:14]} (32... Qf7 {simplifies} 33. Qxf7+ Kxf7 34. Ne5+ Kg8) 33. Ne5 {[%emt 0:01:13]} Qe7 {[%emt 0:00:02]} 34. Nc4 {[%emt 0:01:49]} b5 {[%emt 0:03:25]} 35. axb5 {[%emt 0:00:34]} axb5 {[%emt 0:00:01]} 36. Ne5 {[%emt 0:00:17]} Rxd4 {[%emt 0:00:34]} 37. Nd3 $2 {[%emt 0:04:18][%mdl 8192]} (37. Rc3 $15 Rd8 38. Rc1) 37... Qd6 $2 {[%emt 0:01:55]} ({Worse is} 37... Rg4 38. Qxf5 exf5 39. Rxe7 $11) (37... Qb7 $19 38. h5 Rg4) 38. Nf4 $2 {[%emt 0:00:48][%mdl 8192]} (38. Ne5 $11) 38... Rd1+ $19 {[%emt 0:03:11]} 39. Kg2 {[%emt 0:00:11] [#]} Qc6+ $1 {[%emt 0:00:19]} 40. f3 {[%emt 0:00:00]} Rd2+ {[%emt 0:00:00]} 41. Re2 {[%emt 0:00:44]} Rxe2+ {[%emt 0:02:21]} 42. Nxe2 {[%emt 0:00:07]} Qc2 {[%emt 0:00:54]} 0-1